[Event "Titled Tuesday Blitz November 29 Early 2022"]
[White "Sagita, Catur Adi"]
[Black "Keymer, Vincent"]
[WhiteFideId "7104618"]
[BlackFideId "12940690"]
[WhiteElo "2232"]
[BlackElo "2600"]
[Result "1-0"]
[Round "02"]
[TimeControl "180+1"]
[Date "2022.11.30"]
[WhiteClock "0:00:15"]
[BlackClock "0:00:02"]

1. d4 {[%clk 0:03:00]}  Nf6 {[%clk 0:02:59]} 2. c4 {[%clk 0:03:00]}  e6 {[%clk 0:03:00]} 3. Nf3 {[%clk 0:02:59]}  d5 {[%clk 0:02:59]} 4. Nc3 {[%clk 0:02:56]}  c6 {[%clk 0:02:57]} 5. e3 {[%clk 0:02:56]}  Nbd7 {[%clk 0:02:56]} 6. Qc2 {[%clk 0:02:54]}  Bd6 {[%clk 0:02:56]} 7. b3 {[%clk 0:02:54]}  O-O {[%clk 0:02:56]} 8. Bb2 {[%clk 0:02:53]}  e5 {[%clk 0:02:55]} 9. cxd5 {[%clk 0:02:41]}  cxd5 {[%clk 0:02:53]} 10. dxe5 {[%clk 0:02:41]}  Nxe5 {[%clk 0:02:53]} 11. Nxe5 {[%clk 0:02:41]}  Bxe5 {[%clk 0:02:53]} 12. Bd3 {[%clk 0:02:41]}  Be6 {[%clk 0:02:50]} 13. Ne2 {[%clk 0:02:26]}  Qa5+ {[%clk 0:02:28]} 14. Bc3 {[%clk 0:02:08]}  Qc7 {[%clk 0:02:24]} 15. Rc1 {[%clk 0:02:03]}  Rac8 {[%clk 0:02:21]} 16. Qb2 {[%clk 0:01:52]}  Bxc3+ {[%clk 0:02:17]} 17. Rxc3 {[%clk 0:01:53]}  Qe5 {[%clk 0:02:12]} 18. O-O {[%clk 0:01:48]}  Ng4 {[%clk 0:02:05]} 19. g3 {[%clk 0:01:48]}  Qh5 {[%clk 0:01:58]} 20. h4 {[%clk 0:01:44]}  Ne5 {[%clk 0:01:57]} 21. Nf4 {[%clk 0:01:36]}  Qg4 {[%clk 0:01:49]} 22. Be2 {[%clk 0:01:24]}  Qf5 {[%clk 0:01:47]} 23. Rxc8 {[%clk 0:01:20]}  Rxc8 {[%clk 0:01:48]} 24. Rc1 {[%clk 0:01:17]}  Rxc1+ {[%clk 0:01:47]} 25. Qxc1 {[%clk 0:01:18]}  h6 {[%clk 0:01:47]} 26. Qc7 {[%clk 0:01:15]}  Ng6 {[%clk 0:01:23]} 27. Bd3 {[%clk 0:01:08]}  Qe5 {[%clk 0:01:17]} 28. Nxe6 {[%clk 0:00:48]}  Qxe6 {[%clk 0:01:11]} 29. Qb8+ {[%clk 0:00:47]}  Nf8 {[%clk 0:01:06]} 30. Qxb7 {[%clk 0:00:47]}  a5 {[%clk 0:00:56]} 31. Qb5 {[%clk 0:00:47]}  g6 {[%clk 0:00:42]} 32. Qxa5 {[%clk 0:00:47]}  Nd7 {[%clk 0:00:40]} 33. Qc3 {[%clk 0:00:47]}  Ne5 {[%clk 0:00:36]} 34. Be2 {[%clk 0:00:47]}  Qf6 {[%clk 0:00:36]} 35. Qd4 {[%clk 0:00:46]}  Qd6 {[%clk 0:00:35]} 36. a4 {[%clk 0:00:45]}  Nc6 {[%clk 0:00:31]} 37. Qd2 {[%clk 0:00:44]}  d4 {[%clk 0:00:30]} 38. Bf3 {[%clk 0:00:32]}  Ne5 {[%clk 0:00:28]} 39. Bg2 {[%clk 0:00:32]}  d3 {[%clk 0:00:27]} 40. f4 {[%clk 0:00:27]}  Nd7 {[%clk 0:00:22]} 41. Bf1 {[%clk 0:00:25]}  Nc5 {[%clk 0:00:21]} 42. b4 {[%clk 0:00:26]}  Ne4 {[%clk 0:00:20]} 43. Qxd3 {[%clk 0:00:25]}  Qxb4 {[%clk 0:00:21]} 44. Qd4 {[%clk 0:00:22]}  Qe7 {[%clk 0:00:19]} 45. Kg2 {[%clk 0:00:21]}  Nf6 {[%clk 0:00:17]} 46. Be2 {[%clk 0:00:20]}  h5 {[%clk 0:00:15]} 47. a5 {[%clk 0:00:20]}  Nd7 {[%clk 0:00:10]} 48. a6 {[%clk 0:00:20]}  Nc5 {[%clk 0:00:09]} 49. e4 {[%clk 0:00:15]}  Kh7 {[%clk 0:00:07]} 50. f5 {[%clk 0:00:14]}  Nxe4 {[%clk 0:00:06]} 51. fxg6+ {[%clk 0:00:14]}  fxg6 {[%clk 0:00:06]} 52. a7 {[%clk 0:00:14]}  Nc5 {[%clk 0:00:03]} 53. a8=Q {[%clk 0:00:15]}  Qxe2+ {[%clk 0:00:03]} 54. Qf2 {[%clk 0:00:16]}  Qe7 {[%clk 0:00:03]} 55. Qaf3 {[%clk 0:00:15]}  Kg7 {[%clk 0:00:02]} 56. Qd4+ {[%clk 0:00:14]}  Kh7 {[%clk 0:00:02]} 57. Qdf6 {[%clk 0:00:15]} 1-0


[Site "https://www.chess.com"]

[Event "Titled Tuesday Blitz November 29 Early 2022"]
[White "Samaganova, Aleksandra"]
[Black "Arabidze, Meri"]
[WhiteFideId "13800221"]
[BlackFideId "13604040"]
[WhiteElo "1864"]
[BlackElo "2403"]
[Result "0-1"]
[Round "02"]
[TimeControl "180+1"]
[Date "2022.11.30"]
[WhiteClock "0:00:03"]
[BlackClock "0:00:39"]

1. c4 {[%clk 0:02:57]}  e5 {[%clk 0:02:59]} 2. Nc3 {[%clk 0:02:57]}  Nc6 {[%clk 0:03:00]} 3. g3 {[%clk 0:02:55]}  g6 {[%clk 0:03:00]} 4. Bg2 {[%clk 0:02:52]}  Bg7 {[%clk 0:03:00]} 5. e3 {[%clk 0:02:52]}  d6 {[%clk 0:03:00]} 6. Nge2 {[%clk 0:02:49]}  h5 {[%clk 0:03:01]} 7. h3 {[%clk 0:02:49]}  h4 {[%clk 0:03:01]} 8. g4 {[%clk 0:02:48]}  f5 {[%clk 0:03:01]} 9. f3 {[%clk 0:02:45]}  Nf6 {[%clk 0:02:58]} 10. d4 {[%clk 0:02:41]}  Qe7 {[%clk 0:02:43]} 11. Nd5 {[%clk 0:02:10]}  Nxd5 {[%clk 0:02:39]} 12. cxd5 {[%clk 0:02:11]}  Nd8 {[%clk 0:02:38]} 13. dxe5 {[%clk 0:02:04]}  dxe5 {[%clk 0:02:36]} 14. Qc2 {[%clk 0:01:54]}  Nf7 {[%clk 0:02:35]} 15. Bd2 {[%clk 0:01:52]}  O-O {[%clk 0:02:26]} 16. O-O {[%clk 0:01:46]}  Ng5 {[%clk 0:02:20]} 17. Rac1 {[%clk 0:01:38]}  Rf7 {[%clk 0:02:20]} 18. Qc5 {[%clk 0:01:31]}  Qxc5 {[%clk 0:02:07]} 19. Rxc5 {[%clk 0:01:32]}  Bf8 {[%clk 0:02:07]} 20. Rc4 {[%clk 0:01:31]}  Bd6 {[%clk 0:02:07]} 21. e4 {[%clk 0:01:27]}  f4 {[%clk 0:02:00]} 22. Rfc1 {[%clk 0:01:25]}  b6 {[%clk 0:01:57]} 23. Bb4 {[%clk 0:01:23]}  Ba6 {[%clk 0:01:54]} 24. Bxd6 {[%clk 0:01:16]}  Bxc4 {[%clk 0:01:54]} 25. Rxc4 {[%clk 0:01:15]}  cxd6 {[%clk 0:01:54]} 26. Rc6 {[%clk 0:01:14]}  Rd7 {[%clk 0:01:52]} 27. Nc3 {[%clk 0:01:15]}  Rad8 {[%clk 0:01:32]} 28. Kf2 {[%clk 0:01:13]}  Kf8 {[%clk 0:01:28]} 29. Bf1 {[%clk 0:01:13]}  Ke7 {[%clk 0:01:27]} 30. Kg2 {[%clk 0:01:13]}  Rb8 {[%clk 0:01:20]} 31. Ba6 {[%clk 0:00:59]}  Nf7 {[%clk 0:01:19]} 32. Nb5 {[%clk 0:00:55]}  Nd8 {[%clk 0:01:15]} 33. Rc8 {[%clk 0:00:52]}  Rxc8 {[%clk 0:00:58]} 34. Bxc8 {[%clk 0:00:52]}  a6 {[%clk 0:00:53]} 35. Bxd7 {[%clk 0:00:48]}  Kxd7 {[%clk 0:00:53]} 36. Na3 {[%clk 0:00:44]}  Nb7 {[%clk 0:00:49]} 37. Kf2 {[%clk 0:00:39]}  Nc5 {[%clk 0:00:46]} 38. Ke2 {[%clk 0:00:11]}  Na4 {[%clk 0:00:46]} 39. b3 {[%clk 0:00:04]}  Nc3+ {[%clk 0:00:46]} 40. Kd2 {[%clk 0:00:04]}  Nxa2 {[%clk 0:00:46]} 41. Nc4 {[%clk 0:00:04]}  b5 {[%clk 0:00:45]} 42. Nb2 {[%clk 0:00:03]}  Nb4 {[%clk 0:00:44]} 43. Kc3 {[%clk 0:00:04]}  a5 {[%clk 0:00:44]} 44. Nd1 {[%clk 0:00:03]}  Kc7 {[%clk 0:00:44]} 45. Nb2 {[%clk 0:00:03]}  Kb6 {[%clk 0:00:43]} 46. Nd1 {[%clk 0:00:04]}  Kc5 {[%clk 0:00:44]} 47. Nb2 {[%clk 0:00:04]}  Na2+ {[%clk 0:00:44]} 48. Kc2 {[%clk 0:00:04]}  Kb4 {[%clk 0:00:42]} 49. Nd3+ {[%clk 0:00:04]}  Ka3 {[%clk 0:00:42]} 50. Nxe5 {[%clk 0:00:03]}  dxe5 {[%clk 0:00:42]} 51. d6 {[%clk 0:00:04]}  Nb4+ {[%clk 0:00:42]} 52. Kc3 {[%clk 0:00:04]}  Nc6 {[%clk 0:00:43]} 53. d7 {[%clk 0:00:05]}  a4 {[%clk 0:00:40]} 54. bxa4 {[%clk 0:00:04]}  Kxa4 {[%clk 0:00:40]} 55. Kb2 {[%clk 0:00:03]}  Kb4 {[%clk 0:00:39]} 0-1


[Site "https://www.chess.com"]

[Event "Titled Tuesday Blitz November 29 Early 2022"]
[White "Sanchez, Robert"]
[Black "Balabayeva, Xeniya"]
[WhiteFideId "2034360"]
[BlackFideId "13719688"]
[WhiteElo "2319"]
[BlackElo "2041"]
[Result "1-0"]
[Round "02"]
[TimeControl "180+1"]
[Date "2022.11.30"]
[WhiteClock "0:00:58"]
[BlackClock "0:00:01"]

1. e4 {[%clk 0:03:00]}  c6 {[%clk 0:02:57]} 2. d4 {[%clk 0:02:58]}  d5 {[%clk 0:02:56]} 3. e5 {[%clk 0:02:59]}  Bf5 {[%clk 0:02:56]} 4. Nf3 {[%clk 0:02:59]}  e6 {[%clk 0:02:56]} 5. Be2 {[%clk 0:02:59]}  h5 {[%clk 0:02:53]} 6. O-O {[%clk 0:03:00]}  h4 {[%clk 0:02:53]} 7. h3 {[%clk 0:03:00]}  Be7 {[%clk 0:02:50]} 8. c4 {[%clk 0:03:00]}  Nd7 {[%clk 0:02:49]} 9. Nc3 {[%clk 0:02:59]}  dxc4 {[%clk 0:02:41]} 10. Bxc4 {[%clk 0:02:58]}  Nb6 {[%clk 0:02:40]} 11. Be2 {[%clk 0:02:58]}  Qd7 {[%clk 0:02:29]} 12. Be3 {[%clk 0:02:57]}  Nh6 {[%clk 0:02:21]} 13. Qb3 {[%clk 0:02:57]}  Nd5 {[%clk 0:02:13]} 14. Nxd5 {[%clk 0:02:56]}  exd5 {[%clk 0:02:12]} 15. Nh2 {[%clk 0:02:41]}  Be6 {[%clk 0:02:07]} 16. f4 {[%clk 0:02:37]}  Nf5 {[%clk 0:02:06]} 17. Bf2 {[%clk 0:02:37]}  Qc7 {[%clk 0:01:57]} 18. Rac1 {[%clk 0:02:33]}  Qb6 {[%clk 0:01:51]} 19. Qc3 {[%clk 0:02:26]}  Qb4 {[%clk 0:01:16]} 20. Nf3 {[%clk 0:02:15]}  Qxc3 {[%clk 0:01:11]} 21. bxc3 {[%clk 0:02:16]}  Kd7 {[%clk 0:01:07]} 22. Rfd1 {[%clk 0:02:13]}  b5 {[%clk 0:01:02]} 23. Bd3 {[%clk 0:02:07]}  a5 {[%clk 0:00:59]} 24. Ra1 {[%clk 0:01:47]}  Rhb8 {[%clk 0:00:38]} 25. Bxf5 {[%clk 0:01:42]}  Bxf5 {[%clk 0:00:35]} 26. Bxh4 {[%clk 0:01:42]}  Ba3 {[%clk 0:00:34]} 27. Rd2 {[%clk 0:01:33]}  b4 {[%clk 0:00:19]} 28. cxb4 {[%clk 0:01:32]}  Bxb4 {[%clk 0:00:20]} 29. Re2 {[%clk 0:01:21]}  Bc3 {[%clk 0:00:19]} 30. Rc1 {[%clk 0:01:18]}  Bb2 {[%clk 0:00:19]} 31. Rd1 {[%clk 0:01:15]}  Rb5 {[%clk 0:00:13]} 32. g4 {[%clk 0:01:13]}  Be4 {[%clk 0:00:11]} 33. Ng5 {[%clk 0:01:00]}  Bg6 {[%clk 0:00:01]} 34. f5 {[%clk 0:00:58]} 1-0


[Site "https://www.chess.com"]

[Event "Titled Tuesday Blitz November 29 Early 2022"]
[White "Shimanov, Aleksandr"]
[Black "Principe, Gerson"]
[WhiteFideId "4198603"]
[BlackFideId "3804550"]
[WhiteElo "2605"]
[BlackElo "2280"]
[Result "1-0"]
[Round "02"]
[TimeControl "180+1"]
[Date "2022.11.30"]
[WhiteClock "0:00:24"]
[BlackClock "0:00:09"]

1. e4 {[%clk 0:03:00]}  c6 {[%clk 0:02:57]} 2. d4 {[%clk 0:02:59]}  d5 {[%clk 0:02:57]} 3. Nc3 {[%clk 0:03:00]}  dxe4 {[%clk 0:02:51]} 4. Nge2 {[%clk 0:03:00]}  Nf6 {[%clk 0:02:48]} 5. Ng3 {[%clk 0:03:00]}  Nbd7 {[%clk 0:02:42]} 6. Ncxe4 {[%clk 0:02:59]}  e6 {[%clk 0:02:42]} 7. c3 {[%clk 0:02:58]}  Be7 {[%clk 0:02:41]} 8. Bd3 {[%clk 0:02:57]}  b6 {[%clk 0:02:39]} 9. O-O {[%clk 0:02:56]}  Bb7 {[%clk 0:02:40]} 10. Qe2 {[%clk 0:02:55]}  O-O {[%clk 0:02:38]} 11. Bf4 {[%clk 0:02:54]}  Nd5 {[%clk 0:02:25]} 12. Bd2 {[%clk 0:02:47]}  c5 {[%clk 0:02:24]} 13. c4 {[%clk 0:02:42]}  N5f6 {[%clk 0:02:23]} 14. dxc5 {[%clk 0:02:35]}  Nxc5 {[%clk 0:02:22]} 15. Nxc5 {[%clk 0:02:33]}  Bxc5 {[%clk 0:02:21]} 16. Bc3 {[%clk 0:02:33]}  Bd4 {[%clk 0:02:14]} 17. Rad1 {[%clk 0:02:29]}  e5 {[%clk 0:02:12]} 18. Bxd4 {[%clk 0:02:14]}  exd4 {[%clk 0:02:12]} 19. Qd2 {[%clk 0:02:07]}  Qc7 {[%clk 0:02:05]} 20. Qg5 {[%clk 0:01:53]}  h6 {[%clk 0:02:02]} 21. Qh4 {[%clk 0:01:53]}  Rfe8 {[%clk 0:01:56]} 22. Nf5 {[%clk 0:01:46]}  Qe5 {[%clk 0:01:20]} 23. f3 {[%clk 0:01:38]}  Nh7 {[%clk 0:00:35]} 24. Rfe1 {[%clk 0:01:32]}  Qf6 {[%clk 0:00:35]} 25. Rxe8+ {[%clk 0:01:03]}  Rxe8 {[%clk 0:00:34]} 26. Qxf6 {[%clk 0:01:04]}  Nxf6 {[%clk 0:00:34]} 27. Nxd4 {[%clk 0:01:04]}  Rd8 {[%clk 0:00:24]} 28. Bc2 {[%clk 0:01:02]}  Rd7 {[%clk 0:00:19]} 29. Kf2 {[%clk 0:01:02]}  Kf8 {[%clk 0:00:19]} 30. b3 {[%clk 0:00:49]}  g6 {[%clk 0:00:19]} 31. Nb5 {[%clk 0:00:47]}  Rxd1 {[%clk 0:00:18]} 32. Bxd1 {[%clk 0:00:48]}  a6 {[%clk 0:00:17]} 33. Nc3 {[%clk 0:00:45]}  Bc6 {[%clk 0:00:16]} 34. Ke3 {[%clk 0:00:46]}  Ke7 {[%clk 0:00:17]} 35. Kd4 {[%clk 0:00:46]}  Kd6 {[%clk 0:00:16]} 36. b4 {[%clk 0:00:46]}  h5 {[%clk 0:00:14]} 37. h4 {[%clk 0:00:37]}  Nd7 {[%clk 0:00:13]} 38. Bc2 {[%clk 0:00:37]}  Ne5 {[%clk 0:00:10]} 39. Be4 {[%clk 0:00:30]}  Bd7 {[%clk 0:00:07]} 40. c5+ {[%clk 0:00:29]}  bxc5+ {[%clk 0:00:08]} 41. bxc5+ {[%clk 0:00:29]}  Ke6 {[%clk 0:00:09]} 42. Bd5+ {[%clk 0:00:25]}  Kf6 {[%clk 0:00:09]} 43. Ne4+ {[%clk 0:00:25]}  Kf5 {[%clk 0:00:09]} 44. Nd6+ {[%clk 0:00:26]}  Kf4 {[%clk 0:00:09]} 45. Nxf7 {[%clk 0:00:24]} 1-0


[Site "https://www.chess.com"]

[Event "Titled Tuesday Blitz November 29 Early 2022"]
[White "Stankovic, Ivan G"]
[Black "Gatterer, Florian"]
[WhiteFideId "902837"]
[BlackFideId "811688"]
[WhiteElo "2226"]
[BlackElo "2218"]
[Result "1-0"]
[Round "02"]
[TimeControl "180+1"]
[Date "2022.11.30"]
[WhiteClock "0:00:55"]
[BlackClock "0:00:27"]

1. e4 {[%clk 0:02:54]}  e5 {[%clk 0:03:00]} 2. d4 {[%clk 0:02:54]}  exd4 {[%clk 0:02:59]} 3. Qxd4 {[%clk 0:02:55]}  Nc6 {[%clk 0:02:58]} 4. Qe3 {[%clk 0:02:55]}  Nf6 {[%clk 0:02:58]} 5. Nc3 {[%clk 0:02:55]}  Bb4 {[%clk 0:02:58]} 6. Bd2 {[%clk 0:02:56]}  O-O {[%clk 0:02:57]} 7. O-O-O {[%clk 0:02:56]}  Re8 {[%clk 0:02:57]} 8. f3 {[%clk 0:02:57]}  d5 {[%clk 0:02:40]} 9. Qf2 {[%clk 0:02:57]}  Bxc3 {[%clk 0:02:31]} 10. Bxc3 {[%clk 0:02:56]}  Qe7 {[%clk 0:02:22]} 11. exd5 {[%clk 0:02:42]}  Nb4 {[%clk 0:02:20]} 12. Bc4 {[%clk 0:02:42]}  Bf5 {[%clk 0:02:18]} 13. Bb3 {[%clk 0:02:33]}  a5 {[%clk 0:02:17]} 14. a3 {[%clk 0:02:28]}  Na6 {[%clk 0:01:55]} 15. Re1 {[%clk 0:02:24]}  Qd6 {[%clk 0:01:49]} 16. Ne2 {[%clk 0:02:22]}  a4 {[%clk 0:01:46]} 17. Bc4 {[%clk 0:02:15]}  Nxd5 {[%clk 0:01:37]} 18. Rd1 {[%clk 0:02:11]}  c6 {[%clk 0:01:34]} 19. Bxd5 {[%clk 0:02:05]}  cxd5 {[%clk 0:01:34]} 20. Nd4 {[%clk 0:02:05]}  Bg6 {[%clk 0:01:30]} 21. f4 {[%clk 0:02:05]}  Be4 {[%clk 0:01:28]} 22. Qg3 {[%clk 0:01:57]}  f6 {[%clk 0:01:27]} 23. Rhe1 {[%clk 0:01:54]}  Nc5 {[%clk 0:01:25]} 24. Bb4 {[%clk 0:01:46]}  b6 {[%clk 0:01:18]} 25. h4 {[%clk 0:01:37]}  Qd7 {[%clk 0:01:18]} 26. h5 {[%clk 0:01:29]}  h6 {[%clk 0:01:17]} 27. Bc3 {[%clk 0:01:18]}  Rac8 {[%clk 0:01:13]} 28. Kb1 {[%clk 0:01:15]}  b5 {[%clk 0:00:54]} 29. f5 {[%clk 0:01:12]}  Nb3 {[%clk 0:00:49]} 30. Rxe4 {[%clk 0:01:07]}  dxe4 {[%clk 0:00:41]} 31. cxb3 {[%clk 0:01:05]}  e3 {[%clk 0:00:36]} 32. Re1 {[%clk 0:00:59]}  Qe7 {[%clk 0:00:30]} 33. Ne6 {[%clk 0:00:57]}  Rxc3 {[%clk 0:00:30]} 34. bxc3 {[%clk 0:00:56]}  Qxa3 {[%clk 0:00:27]} 35. Qxg7# {[%clk 0:00:55]} 1-0


[Site "https://www.chess.com"]

[Event "Titled Tuesday Blitz November 29 Early 2022"]
[White "Van Foreest, Jorden"]
[Black "Tasev, Dejan"]
[WhiteFideId "1039784"]
[BlackFideId "936618"]
[WhiteElo "2661"]
[BlackElo "2256"]
[Result "0-1"]
[Round "02"]
[TimeControl "180+1"]
[Date "2022.11.30"]
[WhiteClock "0:03:13"]
[BlackClock "0:00:10"]

1. b3 {[%clk 0:02:57]}  Nf6 {[%clk 0:02:56]} 2. Bb2 {[%clk 0:02:58]}  g6 {[%clk 0:02:56]} 3. e3 {[%clk 0:02:59]}  Bg7 {[%clk 0:02:56]} 4. c4 {[%clk 0:02:59]}  O-O {[%clk 0:02:56]} 5. d4 {[%clk 0:03:00]}  b6 {[%clk 0:02:57]} 6. Nf3 {[%clk 0:03:01]}  Bb7 {[%clk 0:02:57]} 7. Be2 {[%clk 0:03:02]}  e6 {[%clk 0:02:58]} 8. O-O {[%clk 0:03:02]}  d5 {[%clk 0:02:58]} 9. Nc3 {[%clk 0:03:03]}  c6 {[%clk 0:02:58]} 10. cxd5 {[%clk 0:03:04]}  exd5 {[%clk 0:02:58]} 11. Rc1 {[%clk 0:03:04]}  Nbd7 {[%clk 0:02:58]} 12. a4 {[%clk 0:03:05]}  a5 {[%clk 0:02:55]} 13. Ba3 {[%clk 0:03:06]}  Re8 {[%clk 0:02:54]} 14. Re1 {[%clk 0:03:07]}  Rc8 {[%clk 0:02:49]} 15. Bf1 {[%clk 0:03:07]}  Ne4 {[%clk 0:02:40]} 16. Nxe4 {[%clk 0:03:07]}  Rxe4 {[%clk 0:02:39]} 17. g3 {[%clk 0:03:07]}  f5 {[%clk 0:02:35]} 18. Bg2 {[%clk 0:03:07]}  Re8 {[%clk 0:02:32]} 19. Bd6 {[%clk 0:03:07]}  Qf6 {[%clk 0:02:17]} 20. Bf4 {[%clk 0:03:07]}  h6 {[%clk 0:02:09]} 21. h4 {[%clk 0:03:08]}  Kh7 {[%clk 0:02:00]} 22. Rc2 {[%clk 0:03:08]}  Bf8 {[%clk 0:01:50]} 23. Ne5 {[%clk 0:03:09]}  Nxe5 {[%clk 0:01:43]} 24. Bxe5 {[%clk 0:03:10]}  Qe6 {[%clk 0:01:37]} 25. Qd3 {[%clk 0:03:10]}  Bb4 {[%clk 0:01:33]} 26. Rec1 {[%clk 0:03:11]}  h5 {[%clk 0:01:25]} 27. Bf3 {[%clk 0:03:11]}  c5 {[%clk 0:01:23]} 28. Qf1 {[%clk 0:03:11]}  Red8 {[%clk 0:01:13]} 29. Kh2 {[%clk 0:03:12]}  Ra8 {[%clk 0:01:08]} 30. Qe2 {[%clk 0:03:13]}  Ba6 {[%clk 0:01:06]} 31. Qd1 {[%clk 0:03:13]}  Qf7 {[%clk 0:01:00]} 32. Qh1 {[%clk 0:03:12]}  Rac8 {[%clk 0:00:57]} 33. Rd1 {[%clk 0:03:12]}  c4 {[%clk 0:00:54]} 34. Rdc1 {[%clk 0:03:11]}  c3 {[%clk 0:00:53]} 35. Be2 {[%clk 0:03:12]}  Bxe2 {[%clk 0:00:48]} 36. Rxe2 {[%clk 0:03:13]}  Qb7 {[%clk 0:00:45]} 37. Rec2 {[%clk 0:03:13]}  b5 {[%clk 0:00:45]} 38. Qf1 {[%clk 0:03:13]}  bxa4 {[%clk 0:00:45]} 39. bxa4 {[%clk 0:03:14]}  Rc4 {[%clk 0:00:44]} 40. Rb1 {[%clk 0:03:15]}  Qc6 {[%clk 0:00:43]} 41. Qd3 {[%clk 0:03:15]}  Qxa4 {[%clk 0:00:41]} 42. Kg2 {[%clk 0:03:15]}  Qc6 {[%clk 0:00:38]} 43. Ra1 {[%clk 0:03:16]}  Re8 {[%clk 0:00:37]} 44. Rca2 {[%clk 0:03:16]}  Rxe5 {[%clk 0:00:32]} 45. dxe5 {[%clk 0:03:17]}  d4+ {[%clk 0:00:32]} 46. Kh2 {[%clk 0:03:18]}  dxe3 {[%clk 0:00:32]} 47. Qxe3 {[%clk 0:03:18]}  Re4 {[%clk 0:00:27]} 48. Qd3 {[%clk 0:03:19]}  Rxe5 {[%clk 0:00:21]} 49. Rc2 {[%clk 0:03:19]}  f4 {[%clk 0:00:19]} 50. Rd1 {[%clk 0:03:19]}  Re7 {[%clk 0:00:16]} 51. Qd4 {[%clk 0:03:19]}  Qf3 {[%clk 0:00:14]} 52. Qxf4 {[%clk 0:03:19]}  Qxd1 {[%clk 0:00:13]} 53. Rc1 {[%clk 0:03:19]}  Qd7 {[%clk 0:00:12]} 54. Qf6 {[%clk 0:03:19]}  Rf7 {[%clk 0:00:12]} 55. Qb6 {[%clk 0:03:19]}  Qf5 {[%clk 0:00:12]} 56. Rf1 {[%clk 0:03:20]}  c2 {[%clk 0:00:11]} 57. Qe3 {[%clk 0:03:20]}  Rd7 {[%clk 0:00:11]} 58. Qb6 {[%clk 0:03:18]}  Rd1 {[%clk 0:00:10]} 59. Qb7+ {[%clk 0:03:19]}  Qd7 {[%clk 0:00:11]} 60. Rxd1 {[%clk 0:03:13]}  cxd1=Q {[%clk 0:00:10]} 0-1


[Site "https://www.chess.com"]